fUSD/lending_fUSD_20251006
["ID","MTS","AMOUNT","RATE_DAILY","PERIOD"]
[389599819,1759737039139,-433.85,0.00016012,2]
[389599820,1759737039149,-151.55,0.00016013,2]
[389599821,1759737039158,-151.34,0.00016013,2]
[389599822,1759737039168,-437.06,0.00016014,2]
[389599823,1759737039177,-442.37,0.00016014,2]
[389599824,1759737039187,-441.48,0.00016014,2]
[389599825,1759737039196,-275.723,0.00016014,2]
[389599826,1759737039205,-3598.798,0.00016014,2]
[389599827,1759737039215,-441.19,0.00016018,2]
[389599828,1759737039224,-301.24,0.00016018,2]
[389599829,1759737039234,-435.58,0.00016018,2]
[389599830,1759737039244,-436.55,0.00016021,2]
[389599831,1759737039253,-151.67,0.00016027,2]
[389599832,1759737039263,-151.11,0.00016028,2]
[389599833,1759737039272,-150.41,0.00016028,2]
[389599834,1759737039281,-436.45,0.00016029,2]
[389599835,1759737039290,-435.35,0.00016045,2]
[389599836,1759737039301,-439.08,0.00016045,2]
[389599837,1759737039310,-436.3,0.00016045,2]
[389599838,1759737039319,-302.91,0.00016045,2]
[389599839,1759737039328,-3121.0,0.00016047,2]
[389599840,1759737039337,-6733.77502131,0.0001605,2]
[389599841,1759737039346,-305.82,0.00016054,2]
[389599842,1759737039356,-428.54,0.00016064,2]
[389599843,1759737039365,-429.68,0.00016064,2]
[389599844,1759737039374,-150.97,0.00016089,2]
[389599845,1759737039383,-151.29,0.00016089,2]
[389599846,1759737039393,-151.06,0.00016089,2]
[389599847,1759737039402,-152.77,0.00016089,2]
[389599848,1759737039411,-152.39,0.00016089,2]
[389599849,1759737039421,-151.53,0.00016089,2]
[389599850,1759737039430,-304.33,0.00016089,2]
[389599851,1759737039439,-440.93,0.0001609,2]
[389599852,1759737039448,-436.17,0.0001609,2]
[389599853,1759737039457,-429.23,0.0001609,2]
[389599854,1759737039469,-428.28,0.0001609,2]
[389599855,1759737039480,-444.42,0.0001609,2]
[389599856,1759737039489,-433.61,0.0001609,2]
[389599857,1759737039498,-430.47,0.0001609,2]
[389599858,1759737039507,-305.86,0.00016091,2]
[389599859,1759737039518,-438.5,0.00016092,2]
[389599860,1759737039527,-429.55,0.00016092,2]
[389599861,1759737039537,-151.23,0.00016093,2]
[389599862,1759737039546,-305.13,0.00016094,2]
[389599863,1759737039555,-427.84,0.00016097,2]
[389599864,1759737039564,-433.62,0.00016097,2]
[389599865,1759737039574,-150.95,0.00016108,2]
[389599866,1759737039582,-150.04,0.00016108,2]
[389599867,1759737039592,-152.83,0.00016108,2]
[389599868,1759737039601,-152.88,0.00016108,2]
[389599869,1759737039610,-443.12,0.0001611,2]
[389599870,1759737039620,-427.82,0.0001611,2]
[389599871,1759737039629,-442.42,0.0001611,2]
[389599872,1759737039637,-206.19294866,0.00016114,2]
[389599873,1759737039647,-303.86,0.00016143,2]
[389599874,1759737039656,-439.49,0.00016162,2]
[389599875,1759737039665,-430.08,0.00016162,2]
[389599876,1759737039674,-151.36,0.00016189,2]
[389599877,1759737039683,-442.86,0.00016196,2]
[389599878,1759737039693,-434.08,0.00016196,2]
[389599879,1759737039702,-44035.3479079,0.00016201,2]
[389599880,1759737039712,-302.23,0.00016233,2]
[389599881,1759737039721,-1482.09605758,0.00016238,2]
[389599882,1759737039730,-1482.09605751,0.00016249,2]
[389599883,1759737039740,-151.42,0.00016251,2]
[389599884,1759737039749,-3121.0,0.00016257,2]
[389599885,1759737039759,-1482.09605751,0.0001626,2]
[389599886,1759737039768,-429.68,0.00016266,2]
[389599887,1759737039777,-437.23,0.00016266,2]
[389599888,1759737039786,-1482.09605751,0.00016271,2]
[389599889,1759737039795,-500.0,0.0001628,2]
[389599890,1759737039806,-150.0,0.0001628,2]
[389599891,1759737039816,-495.0,0.0001628,2]
[389599892,1759737039826,-150.0,0.0001628,2]
[389599893,1759737039835,-150.0,0.0001628,2]
[389599894,1759737039844,-500.0,0.0001628,2]
[389599895,1759737039854,-153.50994824,0.0001628,2]
[389599896,1759737039863,-152.54601042,0.0001628,2]
[389599897,1759737039872,-461.0,0.0001628,2]
[389599898,1759737039881,-150.0,0.0001628,2]
[389599899,1759737039890,-150.68270803,0.0001628,2]
[389599900,1759737039899,-500.0,0.0001628,2]
[389599901,1759737039909,-248.02426586,0.0001628,2]
[389599902,1759737039918,-500.0,0.0001628,2]
[389599903,1759737039927,-738.0,0.0001628,2]
[389599904,1759737039937,-545.0,0.0001628,2]
[389599905,1759737039945,-500.0,0.0001628,2]
[389599906,1759737039954,-559.0,0.0001628,2]
[389599907,1759737039964,-624.0,0.0001628,2]
[389599908,1759737039973,-500.0,0.0001628,2]
[389599909,1759737039982,-1734.0,0.0001628,2]
[389599910,1759737039991,-150.0,0.0001628,2]
[389599911,1759737040000,-296.19722081,0.00016281,2]
[389599912,1759737040010,-1468.0,0.00016281,2]
[389599913,1759737040019,-500.0,0.00016281,2]
[389599914,1759737040028,-500.0,0.00016281,2]
[389599915,1759737040039,-150.0,0.00016281,2]
[389599916,1759737040048,-150.0,0.00016281,2]
[389599917,1759737040058,-500.0,0.00016281,2]
[389599918,1759737040067,-613.82,0.00016281,2]
[389599919,1759737040077,-1482.09605751,0.00016282,2]
[389599920,1759737040086,-1482.09605751,0.00016294,2]
[389599921,1759737040096,-161.73431153,0.00016299,2]
[389599922,1759737040105,-1482.09605751,0.00016305,2]
[389599923,1759737040114,-1482.09605751,0.00016316,2]
[389599924,1759737040124,-1482.09605751,0.00016327,2]
[389599925,1759737040133,-247.44,0.00016328,2]
[389599926,1759737040142,-1000.0,0.00016328,2]
[389599927,1759737040152,-440.95,0.00016333,2]
[389599928,1759737040161,-435.72,0.00016333,2]
[389599929,1759737040170,-192.95692874,0.00016338,2]
[389599930,1759737040180,-339.91860532,0.00016338,2]
[389599931,1759737040189,-1482.09605751,0.00016338,2]
[389599932,1759737040199,-38374.0096381,0.00016338,2]
[389599933,1759737040209,-238.40877921,0.00016338,2]
[389599934,1759737040218,-161.06985212,0.00016338,2]
[389599935,1759737040227,-1299.05357343,0.00016338,2]
[389599936,1759737040236,-437.94,0.00016338,2]
[389599937,1759737040245,-302.88,0.00016338,2]
[389599938,1759737040255,-434.98,0.00016338,2]
[389599939,1759737040264,-5000.0,0.00016338,2]
[389599940,1759737040273,-215.85377651,0.00016392,2]
[389599941,1759737040283,-161.06985207,0.00016408,2]
[389599942,1759737040292,-247.44,0.00016428,2]
[389599943,1759737040302,-247.44,0.00016428,2]
[389599944,1759737040312,-260.35,0.00016428,2]
[389599945,1759737040321,-247.44,0.00016428,2]
[389599946,1759737040329,-247.44,0.00016428,2]
[389599947,1759737040339,-151.0,0.00016435,2]
[389599948,1759737040348,-812.02370814,0.00016437,2]
[389599949,1759737040357,-14739.81399497,0.00016437,2]
[389599950,1759737040366,-156.385,0.00016437,2]
[389599951,1759737040375,-666.0,0.00016437,2]
[389599952,1759737040384,-70384.7637636,0.00016438,2]
[389599953,1759737040393,-363.0506513,0.00016438,2]
[389599954,1759737040402,-467.07279985,0.00016438,2]
[389599955,1759737040411,-502.37,0.00016438,2]
[389599956,1759737040420,-502.37,0.00016438,2]
[389599957,1759737040429,-502.37,0.00016438,2]
[389599958,1759737040438,-502.37,0.00016438,2]
[389599959,1759737040447,-502.37,0.00016438,2]
[389599960,1759737040456,-502.37,0.00016438,2]
[389599961,1759737040468,-502.37,0.00016438,2]
[389599962,1759737040477,-502.37,0.00016438,2]
[389599963,1759737040486,-502.37,0.00016438,2]
[389599964,1759737040496,-502.37,0.00016438,2]
[389599965,1759737040506,-502.37,0.00016438,2]
[389599966,1759737040515,-502.37,0.00016438,2]
[389599967,1759737040525,-502.37,0.00016438,2]
[389599968,1759737040534,-502.37,0.00016438,2]
[389599969,1759737040544,-502.37,0.00016438,2]
[389599970,1759737040555,-502.37,0.00016438,2]
[389599971,1759737040563,-502.37,0.00016438,2]
[389599972,1759737040572,-502.37,0.00016438,2]
[389599973,1759737040581,-502.37,0.00016438,2]
[389599974,1759737040591,-502.37,0.00016438,2]
[389599975,1759737040599,-502.37,0.00016438,2]
[389599976,1759737040610,-502.37,0.00016438,2]
[389599977,1759737040619,-502.37,0.00016438,2]
[389599978,1759737040628,-502.59251326,0.00016438,2]
[389599979,1759737040637,-1586.54,0.00016438,2]
[389599980,1759737040646,-1586.54,0.00016438,2]
[389599981,1759737040656,-1586.54,0.00016438,2]
[389599982,1759737040665,-1586.54,0.00016438,2]
[389599983,1759737040674,-1586.54,0.00016438,2]
[389599984,1759737040683,-1586.54,0.00016438,2]
[389599985,1759737040692,-1586.54,0.00016438,2]
[389599986,1759737040701,-1586.54,0.00016438,2]
[389599987,1759737040710,-1586.54,0.00016438,2]
[389599988,1759737040719,-1586.54,0.00016438,2]
[389599989,1759737040728,-1586.54,0.00016438,2]
[389599990,1759737040737,-1586.54,0.00016438,2]
[389599991,1759737040747,-1586.54,0.00016438,2]
[389599992,1759737040756,-1586.54,0.00016438,2]
[389599993,1759737040765,-324.11278544,0.00016438,2]
[389599994,1759737040809,-1048.70514636,0.00016438,2]
[389599995,1759737040822,-213.7220682,0.00016438,2]
[389599996,1759737040831,-1586.54,0.00016438,2]
[389599997,1759737040841,-1586.54,0.00016438,2]
[389599998,1759737040854,-1586.54,0.00016438,2]
[389599999,1759737040863,-1586.54,0.00016438,2]
[389600000,1759737040872,-1586.54,0.00016438,2]
[389600001,1759737040881,-1586.54,0.00016438,2]
[389600002,1759737040891,-1586.54,0.00016438,2]
[389600003,1759737040901,-1586.54,0.00016438,2]
[389600004,1759737040910,-1586.58158657,0.00016438,2]
[389600005,1759737040919,-500.0,0.00016438,2]
[389600006,1759737040928,-500.0,0.00016438,2]
[389600007,1759737040937,-500.0,0.00016438,2]
[389600008,1759737040947,-500.0,0.00016438,2]
[389600009,1759737040956,-500.0,0.00016438,2]
[389600010,1759737040965,-500.0,0.00016438,2]
[389600011,1759737040974,-208.37394473,0.00016438,2]
[389600012,1759737040983,-595.58,0.00016438,2]
[389600013,1759737040993,-595.58,0.00016438,2]
[389600014,1759737041002,-595.58,0.00016438,2]
[389600015,1759737041011,-595.58,0.00016438,2]
[389600016,1759737041025,-595.58,0.00016438,2]
[389600017,1759737041034,-595.58,0.00016438,2]
[389600018,1759737041043,-595.58,0.00016438,2]
[389600019,1759737041052,-595.58,0.00016438,2]
[389600020,1759737041061,-595.58,0.00016438,2]
[389600021,1759737041072,-595.58,0.00016438,2]
[389600022,1759737041081,-595.58,0.00016438,2]
[389600023,1759737041090,-595.58,0.00016438,2]
[389600024,1759737041100,-595.58,0.00016438,2]
[389600025,1759737041109,-595.58,0.00016438,2]
[389600026,1759737041119,-595.58,0.00016438,2]
[389600027,1759737041128,-595.58,0.00016438,2]
[389600028,1759737041137,-595.58,0.00016438,2]
[389600029,1759737041147,-595.58,0.00016438,2]
[389600030,1759737041158,-595.58,0.00016438,2]
[389600031,1759737041167,-595.58,0.00016438,2]
[389600032,1759737041177,-595.58,0.00016438,2]
[389600033,1759737041187,-595.58,0.00016438,2]
[389600034,1759737041196,-595.58,0.00016438,2]
[389600035,1759737041205,-595.76758239,0.00016438,2]
[389600036,1759737041215,-500.0,0.00016438,2]
[389600037,1759737041225,-500.0,0.00016438,2]
[389600038,1759737041234,-500.0,0.00016438,2]
[389600039,1759737041243,-500.0,0.00016438,2]
[389600040,1759737041253,-500.0,0.00016438,2]
[389600041,1759737041262,-572.52,0.00016438,2]
[389600042,1759737041271,-500.0,0.00016438,2]
[389600043,1759737041281,-500.0,0.00016438,2]
[389600044,1759737041290,-501.52494022,0.00016438,2]
[389600045,1759737041300,-500.0,0.00016438,2]
[389600046,1759737041309,-503.56005544,0.00016438,2]
[389600047,1759737041319,-500.0,0.00016438,2]
[389600048,1759737041328,-347.41929425,0.00016438,2]
[389600049,1759737041337,-500.0,0.00016438,2]
[389600050,1759737041347,-500.0,0.00016438,2]
[389600051,1759737041357,-500.0,0.00016438,2]
[389600052,1759737041366,-500.0,0.00016438,2]
[389600053,1759737041376,-500.0,0.00016438,2]
[389600054,1759737041385,-500.0,0.00016438,2]
[389600055,1759737041394,-500.0,0.00016438,2]
[389600056,1759737041404,-500.0,0.00016438,2]
[389600057,1759737041417,-500.0,0.00016438,2]
[389600058,1759737041427,-500.0,0.00016438,2]
[389600059,1759737041436,-500.0,0.00016438,2]
[389600060,1759737041445,-509.8369625,0.00016438,2]
[389600061,1759737041454,-500.0,0.00016438,2]
[389600062,1759737041464,-500.0,0.00016438,2]
[389600063,1759737041477,-500.0,0.00016438,2]
[389600064,1759737041486,-500.0,0.00016438,2]
[389600065,1759737041495,-500.0,0.00016438,2]
[389600066,1759737041504,-500.0,0.00016438,2]
[389600067,1759737041514,-500.0,0.00016438,2]
[389600068,1759737041524,-500.0,0.00016438,2]
[389600069,1759737041533,-500.0,0.00016438,2]
[389600070,1759737041542,-500.0,0.00016438,2]
[389600071,1759737041554,-500.0,0.00016438,2]
[389600072,1759737041564,-500.0,0.00016438,2]
[389600073,1759737041573,-500.0,0.00016438,2]
[389600074,1759737041586,-500.0,0.00016438,2]
[389600075,1759737041596,-500.0,0.00016438,2]
[389600076,1759737041606,-500.0,0.00016438,2]
[389600077,1759737041615,-500.0,0.00016438,2]
[389600078,1759737041624,-500.0,0.00016438,2]
[389600079,1759737041634,-500.0,0.00016438,2]
[389600080,1759737041643,-500.0,0.00016438,2]
[389600081,1759737041652,-500.0,0.00016438,2]
[389600082,1759737041660,-346.50736005,0.00016438,2]
[389600083,1759737041669,-220.39256975,0.00016438,2]
[389600084,1759737041678,-500.0,0.00016438,2]
[389600085,1759737041687,-503.39999473,0.00016438,2]
[389600086,1759737041696,-500.0,0.00016438,2]
[389600087,1759737041705,-500.0,0.00016438,2]
[389600088,1759737041715,-500.0,0.00016438,2]
[389600089,1759737041725,-500.0,0.00016438,2]
[389600090,1759737041734,-500.0,0.00016438,2]
[389600091,1759737041743,-288.19956687,0.00016438,2]
[389600092,1759737041752,-500.0,0.00016438,2]
[389600093,1759737041761,-174.96762133,0.00016438,2]
[389600094,1759737041770,-500.0,0.00016438,2]
[389600095,1759737041779,-500.0,0.00016438,2]
[389600096,1759737041788,-500.0,0.00016438,2]
[389600097,1759737041797,-500.0,0.00016438,2]
[389600098,1759737041807,-500.0,0.00016438,2]
[389600099,1759737041816,-500.0,0.00016438,2]
[389600100,1759737041826,-500.0,0.00016438,2]
[389600101,1759737041835,-500.0,0.00016438,2]
[389600102,1759737041844,-320.99767355,0.00016438,2]
[389600103,1759737041853,-500.0,0.00016438,2]
[389600104,1759737041862,-500.0,0.00016438,2]
[389600105,1759737041871,-223.67571842,0.00016438,2]
[389600106,1759737041884,-502.0013297,0.00016438,2]
[389600107,1759737041893,-500.0,0.00016438,2]
[389600108,1759737041902,-376.13227542,0.00016438,2]
[389600109,1759737041911,-500.0,0.00016438,2]
[389600110,1759737041921,-502.65914023,0.00016438,2]
[389600111,1759737041930,-500.0,0.00016438,2]
[389600112,1759737041939,-502.63554322,0.00016438,2]
[389600113,1759737041949,-1453.36,0.00016438,2]
[389600114,1759737041958,-1453.36,0.00016438,2]
[389600115,1759737041968,-1453.36,0.00016438,2]
[389600116,1759737041977,-1453.36,0.00016438,2]
[389600117,1759737041987,-1453.36,0.00016438,2]
[389600118,1759737041996,-1453.36,0.00016438,2]
[389600119,1759737042006,-500.0,0.00016438,2]
[389600120,1759737042015,-500.0,0.00016438,2]
[389600121,1759737042024,-1453.36,0.00016438,2]
[389600122,1759737042033,-1453.36,0.00016438,2]
[389600123,1759737042042,-1453.36,0.00016438,2]
[389600124,1759737042051,-1453.36,0.00016438,2]
[389600125,1759737042061,-1453.36,0.00016438,2]
[389600126,1759737042070,-1453.36,0.00016438,2]
[389600127,1759737042080,-1453.36,0.00016438,2]
[389600128,1759737042089,-1453.36,0.00016438,2]
[389600129,1759737042099,-1453.36,0.00016438,2]
[389600130,1759737042108,-1453.36,0.00016438,2]
[389600131,1759737042117,-1453.36,0.00016438,2]
[389600132,1759737042127,-1453.36,0.00016438,2]
[389600133,1759737042136,-1453.36,0.00016438,2]
[389600134,1759737042146,-1453.36,0.00016438,2]
[389600135,1759737042156,-1453.36,0.00016438,2]
[389600136,1759737042165,-1453.36,0.00016438,2]
[389600137,1759737042175,-1453.36,0.00016438,2]
[389600138,1759737042184,-1453.42845443,0.00016438,2]
[389600139,1759737042193,-500.0,0.00016438,2]
[389600140,1759737042202,-500.0,0.00016438,2]
[389600141,1759737042212,-500.0,0.00016438,2]
[389600142,1759737042222,-500.0,0.00016438,2]
[389600143,1759737042231,-500.0,0.00016438,2]
[389600144,1759737042241,-500.0,0.00016438,2]
[389600145,1759737042250,-2723.83,0.00016438,2]
[389600146,1759737042259,-500.0,0.00016438,2]
[389600147,1759737042268,-2723.83,0.00016438,2]
[389600149,1759737042277,-513.48782394,0.00016438,2]
[389600151,1759737042287,-2723.83,0.00016438,2]
[389600153,1759737042296,-2723.83,0.00016438,2]
[389600154,1759737042306,-2723.83,0.00016438,2]
[389600155,1759737042316,-2723.83,0.00016438,2]
[389600156,1759737042325,-2723.83,0.00016438,2]
[389600157,1759737042335,-2723.83,0.00016438,2]
[389600158,1759737042344,-2723.83,0.00016438,2]
[389600159,1759737042354,-2723.83,0.00016438,2]
[389600160,1759737042363,-500.0,0.00016438,2]
[389600161,1759737042373,-2723.83,0.00016438,2]
[389600162,1759737042382,-500.0,0.00016438,2]
[389600163,1759737042391,-2723.83,0.00016438,2]
[389600164,1759737042401,-500.0,0.00016438,2]
[389600166,1759737042410,-2723.83,0.00016438,2]
[389600167,1759737042420,-500.0,0.00016438,2]
[389600169,1759737042429,-2723.83,0.00016438,2]
[389600170,1759737042438,-500.0,0.00016438,2]
[389600171,1759737042447,-2723.83,0.00016438,2]
[389600172,1759737042456,-500.0,0.00016438,2]
[389600173,1759737042468,-2723.83,0.00016438,2]
[389600174,1759737042479,-500.0,0.00016438,2]
[389600176,1759737042488,-500.0,0.00016438,2]
[389600177,1759737042498,-2723.83,0.00016438,2]
[389600178,1759737042507,-394.368666,0.00016438,2]
[389600179,1759737042517,-2723.83,0.00016438,2]
[389600180,1759737042526,-2723.83,0.00016438,2]
[389600181,1759737042535,-2723.83,0.00016438,2]
[389600182,1759737042545,-2723.83,0.00016438,2]
[389600183,1759737042555,-2723.83,0.00016438,2]
[389600184,1759737042564,-2723.83,0.00016438,2]
[389600185,1759737042574,-2723.90986015,0.00016438,2]
[389600186,1759737042583,-500.0,0.00016438,2]
[389600187,1759737042592,-194.86301822,0.00016438,2]
[389600188,1759737042601,-553.19,0.00016438,2]
[389600189,1759737042610,-500.0,0.00016438,2]
[389600190,1759737042618,-553.19,0.00016438,2]
[389600191,1759737042627,-500.0,0.00016438,2]
[389600192,1759737042637,-553.19,0.00016438,2]
[389600193,1759737042648,-500.0,0.00016438,2]
[389600194,1759737042656,-553.19,0.00016438,2]
[389600195,1759737042665,-500.0,0.00016438,2]
[389600196,1759737042674,-553.19,0.00016438,2]
[389600197,1759737042683,-500.0,0.00016438,2]
[389600198,1759737042693,-553.19,0.00016438,2]
[389600199,1759737042703,-500.0,0.00016438,2]
[389600200,1759737042713,-553.19,0.00016438,2]
[389600201,1759737042723,-324.17627728,0.00016438,2]
[389600202,1759737042732,-553.19,0.00016438,2]
[389600203,1759737042741,-553.19,0.00016438,2]
[389600204,1759737042750,-553.19,0.00016438,2]
[389600205,1759737042760,-553.19,0.00016438,2]
[389600206,1759737042769,-553.19,0.00016438,2]
[389600207,1759737042778,-553.19,0.00016438,2]
[389600208,1759737042788,-553.19,0.00016438,2]
[389600209,1759737042797,-500.0,0.00016438,2]
[389600210,1759737042808,-553.19,0.00016438,2]
[389600211,1759737042818,-500.0,0.00016438,2]
[389600212,1759737042827,-500.0,0.00016438,2]
[389600213,1759737042836,-500.0,0.00016438,2]
[389600214,1759737042845,-553.19,0.00016438,2]
[389600215,1759737042854,-500.0,0.00016438,2]
[389600216,1759737042864,-553.19,0.00016438,2]
[389600217,1759737043063,-500.0,0.00016438,2]
[389600218,1759737043073,-553.19,0.00016438,2]
[389600219,1759737043082,-500.0,0.00016438,2]
[389600220,1759737043091,-553.19,0.00016438,2]
[389600221,1759737043100,-500.0,0.00016438,2]
[389600222,1759737043109,-1152.6,0.00016438,2]
[389600223,1759737043118,-553.19,0.00016438,2]
[389600224,1759737043128,-500.0,0.00016438,2]
[389600225,1759737043137,-500.0,0.00016438,2]
[389600226,1759737043147,-500.0,0.00016438,2]
[389600227,1759737043156,-1152.6,0.00016438,2]
[389600228,1759737043166,-500.0,0.00016438,2]
[389600229,1759737043175,-553.19,0.00016438,2]
[389600230,1759737043184,-1152.6,0.00016438,2]
[389600231,1759737043194,-500.0,0.00016438,2]
[389600232,1759737043203,-500.0,0.00016438,2]
[389600233,1759737043212,-553.19,0.00016438,2]
[389600234,1759737043222,-1152.6,0.00016438,2]
[389600235,1759737043231,-500.0,0.00016438,2]
[389600236,1759737043241,-500.0,0.00016438,2]
[389600237,1759737043250,-553.19,0.00016438,2]
[389600238,1759737043259,-500.0,0.00016438,2]
[389600239,1759737043269,-1152.6,0.00016438,2]
[389600240,1759737043278,-500.0,0.00016438,2]
[389600241,1759737043287,-553.35173353,0.00016438,2]
[389600242,1759737043296,-500.0,0.00016438,2]
[389600243,1759737043306,-1152.6,0.00016438,2]
[389600244,1759737043316,-500.0,0.00016438,2]
[389600245,1759737043325,-500.0,0.00016438,2]
[389600246,1759737043335,-1152.6,0.00016438,2]
[389600247,1759737043345,-500.0,0.00016438,2]
[389600248,1759737043355,-500.0,0.00016438,2]
[389600249,1759737043364,-1152.6,0.00016438,2]
[389600250,1759737043374,-500.0,0.00016438,2]
[389600251,1759737043383,-500.0,0.00016438,2]
[389600252,1759737043393,-1152.6,0.00016438,2]
[389600253,1759737043402,-500.0,0.00016438,2]
[389600254,1759737043411,-500.0,0.00016438,2]
[389600255,1759737043421,-1152.6,0.00016438,2]
[389600256,1759737043430,-500.0,0.00016438,2]
[389600257,1759737043439,-500.0,0.00016438,2]
[389600258,1759737043449,-1152.6,0.00016438,2]
[389600259,1759737043458,-500.0,0.00016438,2]
[389600260,1759737043467,-500.0,0.00016438,2]
[389600261,1759737043482,-1152.6,0.00016438,2]
[389600262,1759737043491,-500.0,0.00016438,2]
[389600263,1759737043501,-500.0,0.00016438,2]
[389600264,1759737043510,-1152.6,0.00016438,2]
[389600265,1759737043521,-269.21502725,0.00016438,2]
[389600266,1759737043530,-500.0,0.00016438,2]
[389600267,1759737043539,-1152.6,0.00016438,2]
[389600268,1759737043549,-500.0,0.00016438,2]
[389600269,1759737043559,-1152.6,0.00016438,2]
[389600270,1759737043568,-500.0,0.00016438,2]
[389600271,1759737043578,-1152.6,0.00016438,2]
[389600272,1759737043587,-500.0,0.00016438,2]
[389600273,1759737043596,-1152.6,0.00016438,2]
[389600274,1759737043606,-428.67888565,0.00016438,2]
[389600275,1759737043615,-1152.6,0.00016438,2]
[389600276,1759737043625,-1152.6,0.00016438,2]
[389600277,1759737043634,-1152.6,0.00016438,2]
[389600278,1759737043643,-1152.6,0.00016438,2]
[389600279,1759737043653,-1152.6,0.00016438,2]
[389600280,1759737043662,-1152.6,0.00016438,2]
[389600281,1759737043671,-1152.62045126,0.00016438,2]
[389600282,1759737043680,-500.0,0.00016438,2]
[389600283,1759737043690,-500.0,0.00016438,2]
[389600284,1759737043699,-500.0,0.00016438,2]
[389600285,1759737043708,-500.0,0.00016438,2]
[389600286,1759737043718,-500.0,0.00016438,2]
[389600287,1759737043727,-500.0,0.00016438,2]
[389600288,1759737043736,-500.0,0.00016438,2]
[389600289,1759737043745,-376.4,0.00016438,2]
[389600290,1759737043755,-500.0,0.00016438,2]
[389600291,1759737043764,-500.0,0.00016438,2]
[389600292,1759737043773,-500.0,0.00016438,2]
[389600293,1759737043782,-500.0,0.00016438,2]
[389600294,1759737043792,-500.0,0.00016438,2]
[389600295,1759737043801,-500.0,0.00016438,2]
[389600296,1759737043811,-500.0,0.00016438,2]
[389600297,1759737043821,-500.0,0.00016438,2]
[389600298,1759737043830,-500.0,0.00016438,2]
[389600299,1759737043840,-500.0,0.00016438,2]
[389600300,1759737043849,-500.0,0.00016438,2]
[389600301,1759737043858,-500.0,0.00016438,2]
[389600302,1759737043868,-500.0,0.00016438,2]
[389600303,1759737043877,-500.0,0.00016438,2]
[389600304,1759737043886,-500.0,0.00016438,2]
[389600305,1759737043895,-500.0,0.00016438,2]
[389600306,1759737043904,-500.0,0.00016438,2]
[389600307,1759737043914,-500.0,0.00016438,2]
[389600308,1759737043923,-500.0,0.00016438,2]
[389600309,1759737043933,-500.0,0.00016438,2]
[389600310,1759737043943,-500.0,0.00016438,2]
[389600311,1759737043952,-303.52785926,0.00016438,2]
[389600312,1759737043961,-2064.69,0.00016438,2]
[389600313,1759737043971,-2064.69,0.00016438,2]
[389600314,1759737043980,-2064.69,0.00016438,2]
[389600316,1759737043989,-2064.69,0.00016438,2]
[389600318,1759737043999,-1855.75918116,0.00016438,2]
[389600322,1759737044403,-208.93081884,0.00016438,2]
[389600323,1759737044412,-2064.69,0.00016438,2]
[389600324,1759737044422,-988.59,0.00016438,2]
[389600325,1759737044431,-2064.69,0.00016438,2]
[389600326,1759737044441,-500.0,0.00016438,2]
[389600327,1759737044450,-988.59,0.00016438,2]
[389600328,1759737044460,-2064.69,0.00016438,2]
[389600329,1759737044473,-500.0,0.00016438,2]